Cogmind - Beta 13 @@@ ROGUE MODE // 2024.04.28 @ 17:29:25 Player: luckinvolved Result: Destroyed by AG-89692 with Assembled Focal Cannon Performance ------------- Evolutions (3) 1500 Regions Visited (11) 2200 Robots Destroyed (45) 225 Value Destroyed (1710) 1710 Prototype IDs (18) 360 Alien Tech Used (0) 0 Bonus (2027) 2027 TOTAL SCORE: 8022 Bonus ------- Follower Combat Kills 134 Aligned with FarCom 300 Met Imprinter 300 Was Imprinted 300 Destroyed Z-Imprinter 1000 Friendly Fire -7 Cogmind --------- Core Integrity 0/700 Matter 285/300 Energy 609/700 System Corruption 5% Temperature Critical (502) Movement Walking (110) Location -7/Deep Caves Parts ------- > --- POWER (1) -------- (None) > --- PROPULSION (3) --- Zionite Composite Leg I Zionite Composite Leg I > --- UTILITY (6) ------ Large Storage Unit Zionite Biocell Zionite Heavy Carapace Makeshift Hacking Suite > --- WEAPON (3) ------- Zionite Laser-S > --- INVENTORY (15) --- Zionite Light DM Reactor Zionite Glidesys I High-capacity Matter Pod (200) Machine Analyzer Experimental Sensor Array Zionite Weapon Casing Hacking Drone Bay (1/1) Phasing AFG Latent Energy Streamer Spear Peak State ------------ > --- POWER ------------ Zionite Light DM Reactor > --- PROPULSION ------- Zionite Composite Leg I Zionite Glidesys I Zionite Glidesys I > --- UTILITY ---------- Experimental Heat Sink Large Storage Unit Zionite Biocell Zionite Heavy Carapace Makeshift Hacking Suite > --- WEAPON ----------- Zionite Laser-S Zionite Phaser-S Zionite Phaser-S > --- INVENTORY -------- Zionite Light DM Reactor High-capacity Matter Pod Machine Analyzer Experimental Sensor Array Zionite Weapon Casing Zionite Weapon Casing Zionite Weapon Casing Zionite Weapon Casing Zionite Light Carapace Hacking Suite Hacking Drone Bay Phasing AFG Latent Energy Streamer Heavy Particle Cannon Spear [Rating: 85] Favorites ----------- Power Improved Ion Engine Engine Improved Ion Engine Reactor Zionite Light DM Reactor Propulsion Light Treads Treads Light Treads Leg Zionite Composite Leg I Hover Unit Zionite Glidesys I Flight Unit Cesium-ion Thruster Utility Large Storage Unit Device Improved Heat Sink Storage Large Storage Unit Hackware Hacking Suite Protection Improved Light Armor Plating Weapon AWS/Thermal Energy Gun AWS/Thermal Energy Cannon Heavy Particle Cannon Ballistic Gun Assault Rifle Launcher Mini Grenade Launcher Slashing Weapon Katana Piercing Weapon Spear Build | -11 -10 -10 -9 -9 -9 -8 -8 -7 -7 -7 -7 ------- Run | Yrd Mat Min Mat Min Exi Min Mat Fac Low Zio Dee Slots Evolved 6 | . . . 2 . . . 2 2 . . . Power . | . . . . . . . . . . . . Propulsion 1 | . . . . . . . 1 . . . . Utility 4 | . . . 2 . . . . 2 . . . Weapon 1 | . . . . . . . 1 . . . . Parts Attached 78 | 6 . 3 4 7 4 . 15 5 1 4 29 Power 4 | 1 . . . 1 . . . . . . 2 Engine 3 | 1 . . . 1 . . . . . . 1 Core . | . . . . . . . . . . . . Reactor 1 | . . . . . . . . . . . 1 Propulsion 17 | 2 . . . 1 . . 6 1 . . 7 Treads 11 | 2 . . . 1 . . 5 1 . . 2 Leg 2 | . . . . . . . . . . . 2 Wheel . | . . . . . . . . . . . . Hover 2 | . . . . . . . . . . . 2 Flight 2 | . . . . . . . 1 . . . 1 Utility 32 | 1 . 3 4 2 1 . 3 3 . 3 12 Device 15 | . . . 4 2 . . 2 2 . 2 3 Storage 6 | 1 . 3 . . 1 . . . . . 1 Processor . | . . . . . . . . . . . . Hackware 2 | . . . . . . . 1 . . 1 . Protection 9 | . . . . . . . . 1 . . 8 Artifact . | . . . . . . . . . . . . Weapon 25 | 2 . . . 3 3 . 6 1 1 1 8 Energy Gun 11 | . . . . 1 2 . 3 . . . 5 Energy Cannon 5 | . . . . . 1 . 2 . 1 . 1 Ballistic Gun 2 | 2 . . . . . . . . . . . Ballistic Cannon . | . . . . . . . . . . . . Launcher 3 | . . . . 2 . . . . . . 1 Special Weapon . | . . . . . . . . . . . . Impact Weapon . | . . . . . . . . . . . . Slashing Weapon 1 | . . . . . . . 1 . . . . Piercing Weapon 3 | . . . . . . . . 1 . 1 1 Special Melee Weapon . | . . . . . . . . . . . . Unidentified Prototypes 18 | . . . 1 1 3 . 1 . . 2 10 Parts Lost 29 | . . . . 3 . . 1 . . . 25 Power 3 | . . . . 1 . . . . . . 2 Propulsion 7 | . . . . 1 . . . . . . 6 Utility 14 | . . . . 1 . . 1 . . . 12 Weapon 5 | . . . . . . . . . . . 5 Highest Loss Streak 6 | . . . . 3 . . 1 . . . 6 To Critical Strikes . | . . . . . . . . . . . . Average Slot Usage (%) 89 | . 85 85 95 92 91 77 86 92 92 92 84 Engine 8 | . 14 14 11 10 11 11 9 7 7 7 3 Treads 21 | . 28 28 22 21 22 22 26 23 23 23 9 Device 20 | . . . 28 27 28 22 17 23 23 23 12 Storage 9 | . 14 14 11 11 11 11 9 7 7 7 10 Hackware 4 | . . . . . . . 7 7 7 7 7 Protection 3 | . . . . . . . . 7 7 7 6 Energy Gun 9 | . . . . 9 10 11 16 14 7 7 14 Ballistic Gun 2 | . 28 28 22 1 . . . . . . . Launcher 1 | . . . . 10 8 . . . . . 1 Piercing Weapon 1 | . . . . . . . . . . 5 1 Naked Turns . | . . . . . . . . . . . . Heaviest Build 87 | 12 12 87 20 31 41 37 47 48 49 68 53 Greatest Support 63 | 40 40 40 40 40 40 40 60 63 63 63 63 Greatest Overweight (x) 8 | . . 2 . . 1 . 1 . . 1 8 Average Overweight (x) . | . . . . . . . . . . . . Largest Inventory Capacity 25 | 8 8 25 10 10 15 15 15 15 15 15 15 Average Capacity 14 | 6 8 10 10 10 14 15 15 15 15 15 15 Most Carried 15 | 2 4 8 10 10 14 14 15 14 14 15 15 Average Carried 12 | 1 3 5 8 9 10 14 14 13 14 14 13 Final Capacity 15 | 8 8 10 10 10 15 15 15 15 15 15 15 Final Carried 15 | 2 4 8 10 10 14 14 15 14 14 15 10 Class Distribution -------------------- 48% | Scavenger-Mutant 20% | Scavenger-Tank 14% | Mutant 9% | Scavenger-Skirmisher 7% | Tank Dominant Class ---------------- Mutant | -10/Materials Mutant | -10/Mines Mutant | -9/Materials Scavenger-Mutant | -9/Mines Scavenger-Mutant | -9/Exiles Scavenger-Mutant | -8/Mines Scavenger-Skirmisher | -8/Materials Scavenger-Tank | -7/Factory Scavenger-Tank | -7/Lower Caves Scavenger-Mutant | -7/Zion Tank | -7/Deep Caves Resources | -11 -10 -10 -9 -9 -9 -8 -8 -7 -7 -7 -7 ----------- Run | Yrd Mat Min Mat Min Exi Min Mat Fac Low Zio Dee Matter Collected 1228 | 204 148 96 158 65 . 31 174 24 36 40 252 Remotely . | . . . . . . . . . . . . Salvage Created 1825 | . 208 72 115 135 . . 554 24 195 . 522 Parts 88 | . 5 2 8 11 . . 35 2 12 . 13 Haulers Intercepted . | . . . . . . . . . . . . Recyclers Shooed 3 | . . . . 1 . . 2 . . . . Parts Field Recycled . | . . . . . . . . . . . . Retrieved Matter . | . . . . . . . . . . . . Parts Self-Destructed 12 | . . . . . . . . . 12 . . Prevented . | . . . . . . . . . . . . Kills | -11 -10 -10 -9 -9 -9 -8 -8 -7 -7 -7 -7 ------- Run | Yrd Mat Min Mat Min Exi Min Mat Fac Low Zio Dee Combat Hostiles Destroyed 39 | . 4 2 3 7 . . 10 . 4 . 9 Guns 33 | . 4 2 3 6 . . 10 . 4 . 4 AOE 5 | . . . . 1 . . . . . . 4 Classes Destroyed 10 | . 2 . 2 2 . . 3 . . . 1 Builder 1 | . . . . . . . 1 . . . . Tunneler 1 | . . . . 1 . . . . . . . Operator 2 | . . . . . . . 2 . . . . Watcher 2 | . 1 . . . . . . 1 . . . Swarmer 4 | . . . 1 3 . . . . . . . Grunt 18 | . 4 2 1 3 . . 5 . 3 . . Duelist 2 | . . . . 1 . . . . 1 . . Sentry 5 | . . . 1 . . . 4 . . . . Hunter 1 | . . . . . . . 1 . . . . Z-Technician 1 | . . . . . . . . . . . 1 Z-Light 9 | . . . . . . . . . . . 9 Best Kill Streak 6 | . 2 2 1 3 . . 3 1 4 . 6 Combat Bots Only 6 | . 2 2 1 3 . . 2 . 4 . 6 Max Kills in Single Turn 2 | . 1 1 1 2 . . 1 1 1 . 1 Gunslinging . | . . . . . . . . . . . . Exploded 1 | . . . . 1 . . . . . . 1 Melee . | . . . . . . . . . . . . Uniques/NPCs Destroyed . | . . . . . . . . . . . . Combat | -11 -10 -10 -9 -9 -9 -8 -8 -7 -7 -7 -7 -------- Run | Yrd Mat Min Mat Min Exi Min Mat Fac Low Zio Dee Hostile Shots Fired 229 | . 23 13 1 21 . . 41 . 4 . 126 Missed 55 | . 4 2 . 3 . . 8 . 2 . 36 Damage Taken 4843 | . 245 147 8 279 . . 314 . 32 . 3818 Core 866 | . 27 14 . 20 . . 74 . . . 731 Absorbed by Shields . | . . . . . . . . . . . . Redirected to Shielding 626 | . . . . . . . . . . . 626 Core Remaining (%) 91 | 100 . 83 . . . 95 86 . . . . Volleys Fired 85 | . 25 6 5 18 . . 12 . 2 . 17 Largest 3 | . 2 2 2 2 . . 1 . 1 . 3 Hottest 180 | . 40 40 40 65 . . 75 . 75 . 180 Shots Fired 250 | . 50 12 10 19 . . 62 3 18 . 76 Gun 237 | . 50 12 10 17 . . 59 3 16 . 70 Cannon 7 | . . . . . . . 3 . 2 . 2 Launcher 6 | . . . . 2 . . . . . . 4 Special . | . . . . . . . . . . . . Kinetic 72 | . 50 12 10 . . . . . . . . Thermal 159 | . . . . 17 . . 62 3 18 . 59 Explosive 6 | . . . . 2 . . . . . . 4 Electromagnetic 2 | . . . . . . . . . . . 2 Phasic 11 | . . . . . . . . . . . 11 Robot Hit Streak 30 | . 8 6 3 13 . . 26 29 30 . 10 Robot Miss Streak 7 | . 2 1 1 7 . . 3 . 1 . 4 Penetration Max . | . . . . . . . . . . . . Secondary Targets 1 | . . 1 . . . . . . . . . Max Gunslinging Chain 1 | . . 1 . . . . . . . . . Autonomous 113 | . . . . . . . 50 3 16 . 44 Shots Hit Robots 186 | . 35 10 5 18 . . 54 3 14 . 47 Core Hits 103 | . 11 4 5 25 . . 27 1 7 . 23 Critical Kills . | . . . . . . . . . . . . Critical Parts Destroyed 1 | . 1 . . . . . . . . . . Critical Strikes 3 | . 1 . . . . . 2 . . . . Burn 2 | . . . . . . . 2 . . . . Destroy 1 | . 1 . . . . . . . . . . Melee Attacks 5 | . . . . . . . 1 3 . 1 . Impact . | . . . . . . . . . . . . Slashing 1 | . . . . . . . 1 . . . . Piercing 4 | . . . . . . . . 3 . 1 . Sneak Attacks . | . . . . . . . . . . . . Combat Hostiles . | . . . . . . . . . . . . Follow-up Attacks . | . . . . . . . . . . . . Damage Inflicted 4994 | 2 461 133 60 369 . . 1489 91 365 . 2024 Guns 4002 | . 461 133 60 232 . . 1405 91 340 . 1280 Cannons 119 | . . . . . . . 84 . 25 . 10 Explosions 871 | . . . . 137 . . . . . . 734 Melee . | . . . . . . . . . . . . Ramming 2 | 2 . . . . . . . . . . . Kinetic 654 | . 461 133 60 . . . . . . . . Thermal 3226 | . . . . 232 . . 1489 91 365 . 1049 Explosive 532 | . . . . 137 . . . . . . 395 Electromagnetic 349 | . . . . . . . . . . . 349 Impact . | . . . . . . . . . . . . Slashing . | . . . . . . . . . . . . Piercing . | . . . . . . . . . . . . Phasic 231 | . . . . . . . . . . . 231 Highest Corruption 5 | . . . . . . . . . . . 5 Average Corruption 4 | . . . . . . . . . . . 4 Corruption Purged . | . . . . . . . . . . . . Corruption Blocked . | . . . . . . . . . . . . Effects 20 | . . . . . . . . . . . 20 Message Errors 2 | . . . . . . . . . . . 2 Matter Fused 5 | . . . . . . . . . . . 5 Heat Flow Errors 4 | . . . . . . . . . . . 4 Energy Discharges 5 | . . . . . . . . . . . 5 Data Loss (minor) 2 | . . . . . . . . . . . 2 Data Loss (major) 1 | . . . . . . . . . . . 1 Misfires 1 | . . . . . . . . . . . 1 Overload Shots . | . . . . . . . . . . . . Overflow Damage 7 | . . . . . . . . . . . 7 Projectiles . | . . . . . . . . . . . . Explosions 7 | . . . . . . . . . . . 7 Melee . | . . . . . . . . . . . . Knockbacks . | . . . . . . . . . . . . Impact . | . . . . . . . . . . . . Kinetic . | . . . . . . . . . . . . Secondary . | . . . . . . . . . . . . Self-Inflicted Damage 58 | . . . . 58 . . . . . . . Shots 2 | . . . . 2 . . . . . . . Rammed 1 | 1 . . . . . . . . . . . Targets Rammed 1 | 1 . . . . . . . . . . . Kicked . | . . . . . . . . . . . . Crushed . | . . . . . . . . . . . . Highest Temperature 552 | . 2 3 . . . . 27 . 12 . 552 Average Temperature 126 | . 2 1 . . . . 13 . 7 . 182 Received Heat Transfer 1122 | . 135 87 . 42 . . 135 . 18 . 705 Effects 4 | . . . . . . . . . . . 4 Energy Bleed 1 | . . . . . . . . . . . 1 Damage (minor) 2 | . . . . . . . . . . . 2 Damage (core) 1 | . . . . . . . . . . . 1 Siege Activations . | . . . . . . . . . . . . Robots Corrupted 1 | . . . . . . . . . . . 1 Combat Hostiles 1 | . . . . . . . . . . . 1 Parts Fried 6 | . . . . . . . . . . . 6 Impact Corruptions . | . . . . . . . . . . . . Robots Melted . | . . . . . . . . . . . . Combat Hostiles . | . . . . . . . . . . . . Parts Melted 7 | . . . . . . . 2 . . . 5 Heat Transferred 4306 | . . . . 290 . . 2009 111 481 . 1415 Parts Sabotaged . | . . . . . . . . . . . . Parts Stolen . | . . . . . . . . . . . . Parts Stripped . | . . . . . . . . . . . . Power Chain Reactions 1 | . . . . . . . . . . . 1 Latent Energy Used 268 | . . . . . . . . . . . 268 LE Corruption 5 | . . . . . . . . . . . 5 Alert | -11 -10 -10 -9 -9 -9 -8 -8 -7 -7 -7 -7 ------- Run | Yrd Mat Min Mat Min Exi Min Mat Fac Low Zio Dee Peak Influence 326 | . 150 118 326 282 . . 197 29 . . . Initial 126 | . . 58 45 126 . . . 15 . . . Average 88 | . 83 80 162 220 . . 89 21 . . . Maximum Alert Level 1 | . . . 1 1 . . . . . . . Low Security (%) 90 | 100 100 100 75 34 . 100 100 100 . . . Level 1 9 | . . . 24 65 . . . . . . . Level 2 . | . . . . . . . . . . . . Level 3 . | . . . . . . . . . . . . Level 4 . | . . . . . . . . . . . . Level 5 . | . . . . . . . . . . . . High Security . | . . . . . . . . . . . . Max Security . | . . . . . . . . . . . . Squads Dispatched 1 | . . . . . . . 1 . . . . Investigation 1 | . . . . . . . 1 . . . . Extermination . | . . . . . . . . . . . . Reinforcement . | . . . . . . . . . . . . Assault . | . . . . . . . . . . . . Garrison . | . . . . . . . . . . . . Intercept . | . . . . . . . . . . . . Searches Triggered . | . . . . . . . . . . . . Construction Impeded . | . . . . . . . . . . . . Haulers Reinforced . | . . . . . . . . . . . . Active Scanning Responses . | . . . . . . . . . . . . Cargo Convoy Interrupts . | . . . . . . . . . . . . Stealth | -11 -10 -10 -9 -9 -9 -8 -8 -7 -7 -7 -7 --------- Run | Yrd Mat Min Mat Min Exi Min Mat Fac Low Zio Dee Distress Signals 8 | . 2 . 3 . . . 3 . . . . Communications Jammed . | . . . . . . . . . . . . Distress Signals . | . . . . . . . . . . . . Times Spotted 63 | . 10 2 12 7 . . 14 1 4 . 13 Peak Tracking Total 5 | . 5 2 4 3 . . 5 1 4 . 5 Tactical Retreats 4 | . 1 . 1 . . . 2 . . . . Traps | -11 -10 -10 -9 -9 -9 -8 -8 -7 -7 -7 -7 ------- Run | Yrd Mat Min Mat Min Exi Min Mat Fac Low Zio Dee Traps Triggered 2 | . . . . . . . 1 1 . . . Indirectly . | . . . . . . . . . . . . Trap Hack Attempts . | . . . . . . . . . . . . Triggered . | . . . . . . . . . . . . Disarmed . | . . . . . . . . . . . . Reprogrammed . | . . . . . . . . . . . . Reused . | . . . . . . . . . . . . Traps Extracted . | . . . . . . . . . . . . Installed . | . . . . . . . . . . . . Triggered 1 | . . 1 . . . . . . . . . Machines | -11 -10 -10 -9 -9 -9 -8 -8 -7 -7 -7 -7 ---------- Run | Yrd Mat Min Mat Min Exi Min Mat Fac Low Zio Dee Machines Disabled 1 | . . . . . . . . . . . 1 Max in Single Turn . | . . . . . . . . . . . . Machines Repaired . | . . . . . . . . . . . . Machines Dismantled . | . . . . . . . . . . . . Machines Sabotaged . | . . . . . . . . . . . . Overloaded Fab Kills . | . . . . . . . . . . . . Hacking | -11 -10 -10 -9 -9 -9 -8 -8 -7 -7 -7 -7 --------- Run | Yrd Mat Min Mat Min Exi Min Mat Fac Low Zio Dee Machines Accessed 11 | . 2 . 2 1 . . 5 1 . . . Terminals 10 | . 2 . 2 . . . 5 1 . . . Fabricators . | . . . . . . . . . . . . Repair Stations . | . . . . . . . . . . . . Recycling Units . | . . . . . . . . . . . . Scanalyzers . | . . . . . . . . . . . . Garrison Access . | . . . . . . . . . . . . Total Hacks 26 | . 4 . 3 1 . . 17 1 . . . Successful 8 | . 2 . . 1 . . 4 1 . . . Failed 18 | . 2 . 3 . . . 13 . . . . Catastrophic 5 | . . . 2 . . . 3 . . . . Database Lockouts . | . . . . . . . . . . . . Manual 24 | . . . 3 . 1 . 15 1 . 4 . Terminals 25 | . 4 . 3 . . . 17 1 . . . Fabricators . | . . . . . . . . . . . . Repair Stations . | . . . . . . . . . . . . Recycling Units . | . . . . . . . . . . . . Scanalyzers . | . . . . . . . . . . . . Garrison Access . | . . . . . . . . . . . . Terminal Hacks 8 | . 2 . . 1 . . 4 1 . . . Record 1 | . . . . . . . 1 . . . . Open Door 1 | . . . . 1 . . . . . . . Level Access Points 1 | . . . . . . . 1 . . . . Branch Access Points 3 | . 1 . . . . . 1 1 . . . Hauler Manifests 1 | . 1 . . . . . . . . . . Zone Layout 1 | . . . . . . . 1 . . . . Fabricator Hacks . | . . . . . . . . . . . . Repair Station Hacks . | . . . . . . . . . . . . Recycling Unit Hacks . | . . . . . . . . . . . . Scanalyzer . | . . . . . . . . . . . . Garrison Access Hacks . | . . . . . . . . . . . . Unauthorized Hacks . | . . . . . . . . . . . . Terminals . | . . . . . . . . . . . . Fabricators . | . . . . . . . . . . . . Repair Stations . | . . . . . . . . . . . . Recycling Units . | . . . . . . . . . . . . Scanalyzers . | . . . . . . . . . . . . Garrison Access . | . . . . . . . . . . . . Data Cores Recovered 2 | . . . . . . . 2 . . . . Used 1 | . . . . . . . 1 . . . . Hacking Detections 7 | . 1 . 2 . . . 4 . . . . Full Trace Events . | . . . . . . . . . . . . Feedback Events . | . . . . . . . . . . . . Feedback Blocked . | . . . . . . . . . . . . Robot Schematics Acquired 4 | . . . . . . . . . . 4 . Robots Built . | . . . . . . . . . . . . Authchips . | . . . . . . . . . . . . Time . | . . . . . . . . . . . . Total Robot Build Rating . | . . . . . . . . . . . . Part Schematics Acquired 15 | . . . . . . . . . . 15 . Parts Built . | . . . . . . . . . . . . Authchips . | . . . . . . . . . . . . Time . | . . . . . . . . . . . . Total Part Build Rating . | . . . . . . . . . . . . Parts Repaired . | . . . . . . . . . . . . Time . | . . . . . . . . . . . . Parts Recycled . | . . . . . . . . . . . . Recycled Matter . | . . . . . . . . . . . . Retrieved Matter . | . . . . . . . . . . . . Retrieved Components . | . . . . . . . . . . . . Parts Scanalyzed . | . . . . . . . . . . . . Part Schematics Acquired . | . . . . . . . . . . . . Parts Damaged . | . . . . . . . . . . . . Bothacking | -11 -10 -10 -9 -9 -9 -8 -8 -7 -7 -7 -7 ------------ Run | Yrd Mat Min Mat Min Exi Min Mat Fac Low Zio Dee Used RIF Installer . | . . . . . . . . . . . . Robots Hacked . | . . . . . . . . . . . . Non-combat . | . . . . . . . . . . . . Combat . | . . . . . . . . . . . . Robot Hacks Applied . | . . . . . . . . . . . . Relay Couplers Released . | . . . . . . . . . . . . Fabnet Peak Effective % . | . . . . . . . . . . . . Robots Rewired . | . . . . . . . . . . . . Allies Hacked . | . . . . . . . . . . . . Hacks Repelled . | . . . . . . . . . . . . Allies | -11 -10 -10 -9 -9 -9 -8 -8 -7 -7 -7 -7 -------- Run | Yrd Mat Min Mat Min Exi Min Mat Fac Low Zio Dee Total Allies 11 | . . 3 . . . . . . . 8 . Largest Group 8 | . . 3 3 . . . . . . 8 4 Highest-Rated Group 251 | . . 40 40 . . . . . . 251 101 Highest-Rated Ally 39 | . . 16 16 . . . . . . 39 39 Total Orders . | . . . . . . . . . . . . Ally Attacks 67 | . . . 40 . . . 6 . . . 21 Total Damage 600 | . . . 391 . . . 15 . . . 194 Kills 8 | . . . 7 . . . . . . . 1 Allies Corrupted . | . . . . . . . . . . . . Allies Melted . | . . . . . . . . . . . . Intel | -11 -10 -10 -9 -9 -9 -8 -8 -7 -7 -7 -7 ------- Run | Yrd Mat Min Mat Min Exi Min Mat Fac Low Zio Dee Robot Analysis Total . | . . . . . . . . . . . . Derelict Logs Recovered 2 | . . . . . . . . . 1 1 . Drone Launches 6 | . . . . . . . 6 . . . . Drone Recoveries 6 | . . . . . . . 6 . . . . Exploration | -11 -10 -10 -9 -9 -9 -8 -8 -7 -7 -7 -7 ------------- Run | Yrd Mat Min Mat Min Exi Min Mat Fac Low Zio Dee Turns Passed 8073 | 79 270 313 330 277 1149 225 848 477 324 2503 1278 Spaces Moved 4281 | 53 108 155 181 132 611 112 398 285 200 1260 786 Core 16 | 16 . . . . . . . . . . . Treads 3834 | 37 108 155 181 132 611 112 398 285 200 1260 355 Legs 204 | . . . . . . . . . . . 204 Wheels . | . . . . . . . . . . . . Hover 216 | . . . . . . . . . . . 216 Flight 11 | . . . . . . . . . . . 11 Fastest Speed 50 | 50 160 160 160 160 160 160 160 160 160 160 110 Average Speed 171 | 126 160 161 160 160 186 160 160 160 160 194 150 Slowest Speed 675 | 160 160 320 160 160 240 160 240 160 160 240 675 Overloaded Moves . | . . . . . . . . . . . . Propulsion Burnouts . | . . . . . . . . . . . . Robots Hopped . | . . . . . . . . . . . . Cave-ins Triggered . | . . . . . . . . . . . . Time Travels 1 | . . . . . 1 . . . . . . Exploration Rate (%) 40 | 4 26 39 27 31 80 35 32 7 28 91 82 Regions Visited 11 Branch Regions 7 Pre-discovered Areas 3 | . . . . . . . . . 1 2 . Known Exits Taken 3 | . 1 . . . . . 1 1 . . . Unknown Exits Taken 8 | 1 . 1 1 1 1 1 . . 1 1 . Scrap Searched 6 | . . . . . . 1 . . 1 4 . Spaces Dug 2 | . . . . . . . 1 1 . . . Terrain Destroyed 66 | . . . . 13 . . 8 1 4 . 40 Melee 2 | . . . . . . . 1 1 . . . Projectile 23 | . . . . . . . 7 . 4 . 12 AOE 41 | . . . . 13 . . . . . . 28 Terrain Rammed . | . . . . . . . . . . . . Walls Destroyed . | . . . . . . . . . . . . Machines Disabled . | . . . . . . . . . . . . Actions | -11 -10 -10 -9 -9 -9 -8 -8 -7 -7 -7 -7 --------- Run | Yrd Mat Min Mat Min Exi Min Mat Fac Low Zio Dee Total 4857 | 62 155 207 212 178 621 158 597 302 202 1310 853 Wait 330 | . 21 37 16 17 . 47 145 2 . 42 3 Move 4270 | 52 107 154 180 131 610 111 397 284 199 1259 786 Hop . | . . . . . . . . . . . . Pick Up 45 | 3 2 4 5 3 1 . 12 4 . 2 9 Fast Attach 34 | 5 . 3 1 1 2 . 7 . . 1 14 Attach 26 | 1 . . 3 3 1 . 4 2 . . 12 Detach 8 | . . . 1 1 4 . 1 . . . 1 Swap 18 | . . . . 3 1 . 4 3 1 3 3 Drop 35 | . . 3 1 1 2 . 14 4 . 2 8 Fire 85 | . 25 6 5 18 . . 12 . 2 . 17 Melee 5 | . . . . . . . 1 3 . 1 . Ram . | . . . . . . . . . . . . Kick . | . . . . . . . . . . . . Crush 1 | 1 . . . . . . . . . . . Escape Stasis . | . . . . . . . . . . . . Rewire . | . . . . . . . . . . . . Trap . | . . . . . . . . . . . . Miscellaneous . | . . . . . . . . . . . . Route ------- -11/Scrapyard -10/Materials (discovered 2 exits: *Min x2) -10/Mines -9/Materials -9/Mines -9/Exiles -8/Mines -8/Materials (discovered 3 exits: *Fac x3) -7/Factory (discovered 4 exits: [*Fac] / Sto / *Low x2) -7/Lower Caves -7/Zion (discovered 2 exits: [*Dee] / [*Pro]) -7/Deep Caves History --------- Turn | Location | Event 8 | -11/Scrapyard | Discovered new exit (range 14) 80 | -11/Scrapyard | Entered Materials 98 | -10/Materials | Identified exit to Mines 309 | -10/Materials | Build established: Mutant 350 | -10/Materials | Entered Mines 529 | -10/Mines | Found a damaged Exp. Sensor Array with a note attached 532 | -10/Mines | Found Prototype Device 627 | -10/Mines | Assisted by bots powering up and referring to "LRC-V3" 638 | -10/Mines | Discovered new exit (range 12) 663 | -10/Mines | Entered Materials 663 | -9/Materials | Accompanied by 3 allies 663 | -9/Materials | Evolved 2 slots: Utility x2 663 | -9/Materials | Identified Exp. Sensor Array 969 | -9/Materials | Discovered new exit (range 15) 993 | -9/Materials | Entered Mines 1055 | -9/Mines | Lost 3 parts (1p1n1u) 1100 | -9/Mines | Assembled infested the area 1213 | -9/Mines | Found the Drone Emporium 1221 | -9/Mines | Found Prototype Device 1223 | -9/Mines | Identified Splice Drone Bay 1262 | -9/Mines | Deemed a non-threat by the Exiles lab entrance 1264 | -9/Mines | Discovered new exit (range 5) 1270 | -9/Mines | Entered Exiles 1301 | -9/Exiles | Build established: Scavenger-Mutant 1307 | -9/Exiles | Met 8R-AWN 1338 | -9/Exiles | Met EX-HEX 1475 | -9/Exiles | Met EX-DEC 1515 | -9/Exiles | Visited The Gauntlet 1814 | -9/Exiles | Met EX-BIN 1852 | -9/Exiles | Aligned with FarCom system 1854 | -9/Exiles | Given EX-Vault access code 1910 | -9/Exiles | Opened EX-Vault 1925 | -9/Exiles | Found Prototype Device 1925 | -9/Exiles | Identified Chronowheel 1925 | -9/Exiles | Activated Chronowheel 1925 | -9/Exiles | Spacetime reconverged on an earlier point 1960 | -9/Exiles | Warned to stay clear of 0b10 Research branches 2076 | -9/Exiles | Discovered new exit (range 14) 2257 | -9/Exiles | Found Prototype Energy Gun 2257 | -9/Exiles | Identified AWS/Thermal 2261 | -9/Exiles | Found Prototype Energy Cannon 2263 | -9/Exiles | Identified Latent Energy Streamer 2419 | -9/Exiles | Stole two prototypes: AWS/Thermal, Latent Energy Streamer 2419 | -9/Exiles | Entered Mines 2633 | -8/Mines | Discovered new exit (range 8) 2644 | -8/Mines | Entered Materials 2644 | -8/Materials | Evolved 2 slots: Propulsion x1, Weapon x1 2995 | -8/Materials | Build established: Scavenger-Skirmisher 3348 | -8/Materials | Identified exit to Factory 3492 | -8/Materials | Entered Factory 3492 | -7/Factory | Evolved 2 slots: Utility x2 3494 | -7/Factory | FarCom data flow suspended 3681 | -7/Factory | Identified exit to Storage 3681 | -7/Factory | Identified exit to Lower Caves 3778 | -7/Factory | Build established: Scavenger-Tank 3937 | -7/Factory | Discovered new exit (range 9) 3969 | -7/Factory | Entered Lower Caves 4283 | -7/Lower Caves | A Derelict revealed a hidden shortcut to a safe place 4293 | -7/Lower Caves | Entered Zion 4505 | -7/Zion | Acquired unknown access codes intercepted by a Zionite 4532 | -7/Zion | Discovered new exit (range 14) 4602 | -7/Zion | Found Prototype Device 4605 | -7/Zion | Identified Phasing AFG 4829 | -7/Zion | Learned 12 Factory zone layouts 5095 | -7/Zion | Build established: Scavenger-Mutant 5112 | -7/Zion | Gained Derelict followers 5651 | -7/Zion | Learned location of Warlord (-5) 5944 | -7/Zion | Given the Hacking Drone Bay 5944 | -7/Zion | Found Prototype Device 5950 | -7/Zion | Identified Hacking Drone Bay 6433 | -7/Zion | Given A8's code to call for help 6603 | -7/Zion | Imprinted 6605 | -7/Zion | Declared Zion's savior 6748 | -7/Zion | Opened final containment barrier to the Deep Caves 6772 | -7/Zion | Discovered new exit (range 5) 6775 | -7/Zion | Saw the warning signs outside the Deep Caves entrance 6796 | -7/Zion | Entered Deep Caves 6796 | -7/Deep Caves | Accompanied by 8 allies 7060 | -7/Deep Caves | Z-Facility disabled 7078 | -7/Deep Caves | Attacked by Z-Imprinter 7125 | -7/Deep Caves | Lost 4 allies 7142 | -7/Deep Caves | Lost 6 parts (2n3u1w) 7342 | -7/Deep Caves | Found Prototype Protection 7342 | -7/Deep Caves | Identified Zio. Weapon Casing 7355 | -7/Deep Caves | Lost 3 parts (1p1n1u) 7449 | -7/Deep Caves | Lost 6 parts (2n3u1w) 7510 | -7/Deep Caves | Found Prototype Protection 7510 | -7/Deep Caves | Identified Zio. Heavy Carapace 7538 | -7/Deep Caves | Found Zio. Weapon Casing 7547 | -7/Deep Caves | Found Zio. Weapon Casing 7560 | -7/Deep Caves | Found Zio. Weapon Casing 7585 | -7/Deep Caves | Found Zio. Weapon Casing 7800 | -7/Deep Caves | Build established: Tank 7987 | -7/Deep Caves | Spotted AG-89692 8031 | -7/Deep Caves | Lost 4 parts (1n2u1w) 8053 | -7/Deep Caves | Core integrity fell below 50% 8072 | -7/Deep Caves | Core integrity fell below 20% 8074 | -7/Deep Caves | Destroyed by AG-89692 with Assembled Focal Cannon Last Messages --------------- 07997_ Zio. Light Carapace destroyed. 08000_ Zio. Glidesys I destroyed. 08000_ Zio. Phaser-S destroyed. 08000_ Zio. Weapon Casing destroyed. 08001_ System corrupted: Energy discharge (-154). 08021_ System corrupted: Matter fused (-5). 08055_ Exp. Heat Sink destroyed. 08058_ Zio. Weapon Casing destroyed. 08060_ Destroyed Prototype Device. 08061_ Overheating: Zio. Phaser-S damaged (-9). 08061_ AG-89692 GOLEM Unit beginning Prototype Device integration. 08065_ Overheating: Zio. Biocell damaged (-12). 08065_ Zio. Weapon Casing destroyed. 08066_ Overheating: Energy bleed (-119). 08068_ Zio. Phaser-S destroyed. 08068_ Zio. Laser-S destroyed. 08068_ Zio. Light DM Reactor destroyed. 08071_ System corrupted: Heat flow error (+218). 08072_ Overheating: Core damaged (-140). [Achievement: This Is Interesting...] Map ----- +----------------------------------------------------+ | ???????????????????## ##? #??# | | ???????????????????# ## ##?### #### | | ???????????????????# #???# #### ##??? | | ???????????????????# #????#????## ##???? | | ????????????????????# #??????????# ##???? | | ?????????????????????# ##????????## ##??? | | ????????????????????## #????????# ##?? | | ???????????????????## #????????# #?? | | ?????????? #???# ##???????## #?? | | ???????? #??# ##???????## ##?? | | ????? ??## "#??###### #??? | | ??? !/! #???## ##?# ##?? | | ? / ! ##???## #?# #?? | | ? #????### ### ## #?? | | ! #??????## ## ##?? | | ! #???????# ####### #??? | | #???????## ##????## ##??? | | / = #???????## ####### ## ##???? | | ! #???????#; ;# #?# #????? | | ! #???????#; # #??# #????? | | ! ##??????#;G #??## ##???? | | * #?????## # #### #???? | | * #????## ## ##???? | | * #????# ### ###????? | | ####### ##?## #??????? | | ! l @ ##???# ##?????? | | ! * #????# #?????? | | ! #?# ? | | ###########;## "" | | #??????????### """ | | ##????????????## ## " | | # # #??????????????## ##?# | | #### ## ## ##???????????????# #???### | | ? ##???# ?# ?###????????????????### ##??????? | | ? ??????#??# ??????????????????????######????????? | | ????????????#????????????????????????????????????? | | | | | | | | | | | | | | | | | | | | | | | | | | | | | +----------------------------------------------------+ Best States ------------- Heat Dissipation 70 Energy Generation 27 Energy Capacity 700 Matter Stores 300 Matter Capacity 300 Sight Range 16 Robot Scan Range 20 Terrain Scan Density 10 Armor Coverage 1200 Weapon Shielding 100 Evasion (%) 55 Recoil Reduction 3 Energy Filtering 30 Particle Charging 15 Offensive Hacking 11 Item Schematics ----------------- Focal Shield | -7/Zion | Archive Mak. Hover Unit | -7/Zion | Archive Component Analysis Suite | -7/Zion | Archive Plasma Cannon | -7/Zion | Archive Launcher Guidance Computer | -7/Zion | Archive Point Defense System | -7/Zion | Archive Adv. Sensor Array | -7/Zion | Archive Mak. Shrapnel Gun | -7/Zion | Archive Imp. Proton Missile Launcher | -7/Zion | Archive Flak Gun | -7/Zion | Archive Thermic Laser | -7/Zion | Archive Mak. System Shield | -7/Zion | Archive Fusion Compressor | -7/Zion | Archive Imp. Deuterium Engine | -7/Zion | Archive Mni. Drone Bay | -7/Zion | Archive Robot Schematics ------------------ K-01 Serf | -7/Zion | Archive O-24 Administrator | -7/Zion | Archive T-07 Excavator | -7/Zion | Archive G-73 Enforcer | -7/Zion | Archive Fabricated ------------ Nothing Alien Tech Used ----------------- None Achievements -------------- Adventurer Are We The Baddies? Factory Defaults Signs Are For Wimps This Is Interesting... Challenges ------------ None Game ------ Seed HybridUtilityPod Manual? 0 Play Time 00:57:07 Cumulative 55.3 hours Start 2024.04.28 @ 16:32:31 End 2024.04.28 @ 17:29:25 Sessions 1 Manual Loads 0 Difficulty Rogue Special Mode None Game No. 90 Rogue 85 Adventurer 5 Explorer 0 Win Type - Total 1 Types 1/0/0/0/0/0/0/0/0 Lore% 25 Gallery% 53 Achievement% 37 Wizard Run 0 Options --------- Layout 0 ASCII 0 Keyboard 0 Movement Mouse Keybinds 0 Fullscreen 1 Font 24/Smallcaps Map View 76x50 Zoom Use 0% Tactical HUD 1 Map Filters NONE Filters NONE Steam 1 RUN: fed84ead-66e9-4e80-9ef6-757df96558ad